bitfinex-derivatives/quotes_BNBF0:USTF0_20250101
["timestamp","ask_amount","ask_price","bid_price","bid_amount"]
[1735697372422,1.47407138,708.83,707.97,1.05583573]
[1735697372423,0.25987797,708.77,707.97,1.05583573]
[1735697372615,1.47407138,708.83,707.97,1.05583573]
[1735697372616,0.25987797,708.76,707.97,1.05583573]
[1735697372818,0.25987797,708.75,707.97,1.05583573]
[1735697373018,0.25987797,708.74,707.97,1.05583573]
[1735697373219,0.25987797,708.73,707.96,1.05583573]
[1735697373419,0.25987797,708.72,707.96,1.05583573]
[1735697373619,0.25987797,708.71,707.96,1.05583573]
[1735697373819,0.25987797,708.7,707.96,1.05583573]
[1735697374021,1.47407138,708.83,707.96,1.05583573]
[1735697374218,0.25987948,708.82,707.95,1.05583573]
[1735697375221,0.25987948,708.82,707.96,1.05583573]
[1735697376118,0.25987948,708.82,707.95,1.05583573]
[1735697376624,1.47407138,708.83,707.95,1.05583573]
[1735697376825,0.25989466,708.82,707.95,1.05583573]
[1735697377026,0.25989466,708.82,707.94,1.05583573]
[1735697378020,0.25989466,708.82,707.9,1.05583573]
[1735697379024,0.25989466,708.82,707.91,1.05583573]
[1735697379425,1.47407138,708.83,707.91,1.05583573]
[1735697379623,0.25989551,708.82,707.91,1.05583573]
[1735697382024,1.47407138,708.83,707.91,1.05583573]
[1735697382225,0.259876,708.82,707.91,1.05583573]
[1735697382431,0.259876,708.82,707.94,1.05583573]
[1735697383331,0.259876,708.82,707.97,1.05583573]
[1735697384424,0.259876,708.82,707.95,1.05583573]
[1735697384624,1.47407138,708.83,707.95,1.05583573]
[1735697384826,0.25987754,708.82,707.95,1.05583573]
[1735697387524,0.25987201,708.81,707.95,1.05583573]
[1735697387729,0.25987201,708.8,707.95,1.05583573]
[1735697387931,0.28213519,708.88,707.95,1.05583573]
[1735697388132,0.28213519,708.88,707.99,1.05583573]
[1735697388832,0.28213519,708.88,707.73,1.05583573]
[1735697389628,0.28213519,708.88,707.74,1.05583573]
[1735697391534,0.28213519,708.88,707.73,1.05583573]
[1735697392833,0.28213519,708.88,707.7,1.05583573]
[1735697395736,0.28213519,708.88,707.71,1.05583573]
[1735697396539,0.28213519,708.88,707.76,1.05583573]
[1735697397434,0.28213519,708.88,707.73,1.05583573]
[1735697398735,0.28213519,708.88,707.91,1.05583573]
[1735697399335,0.25985566,708.87,707.91,1.05583573]
[1735697399633,0.25985566,708.87,707.92,1.05583573]
[1735697400639,0.25985566,708.87,707.95,1.05583573]
[1735697400837,0.28213519,708.88,707.95,1.05583573]
[1735697401140,0.25985001,708.87,707.95,1.05583573]
[1735697401336,0.28213519,708.88,707.95,1.05583573]
[1735697401533,0.25985709,708.87,707.95,1.05583573]
[1735697402539,0.28213519,708.88,707.95,1.05583573]
[1735697402733,0.25985735,708.87,707.95,1.05583573]
[1735697402940,0.25985735,708.87,707.96,1.05583573]
[1735697403941,0.25985735,708.87,707.98,1.05583573]
[1735697404740,0.25985735,708.87,707.74,1.05583573]
[1735697404741,0.25985735,708.87,708.02,1.05583573]
[1735697405441,0.25984456,708.86,708.02,1.05583573]
[1735697405642,0.25984456,708.85,708.01,1.05583573]
[1735697405845,0.25984456,708.84,708.01,1.05583573]
[1735697406042,0.25984456,708.83,708.01,1.05583573]
[1735697406238,0.25984456,708.82,708.01,1.05583573]
[1735697406438,0.25984456,708.81,708.01,1.05583573]
[1735697406644,0.28213519,708.88,708.01,1.05583573]
[1735697406945,0.25984565,708.87,708.01,1.05583573]
[1735697407843,0.28213519,708.88,708.01,1.05583573]
[1735697408044,0.28213519,708.88,707.62,0.78907219]
[1735697408045,0.25984265,708.86,708.03,1.05583573]
[1735697408339,0.25984192,708.85,708.03,1.05583573]
[1735697409042,0.25984192,708.85,708.04,1.05583573]
[1735697411243,0.25984192,708.85,708.05,1.05583573]
[1735697411946,0.25984265,708.86,708.05,1.05583573]
[1735697412446,0.25984265,708.86,708.03,1.05583573]
[1735697413448,0.25984265,708.86,708.04,1.05583573]
[1735697414646,0.25984265,708.86,708.07,1.05583573]
[1735697415546,0.25984265,708.86,708.06,1.05583573]
[1735697416346,0.25983851,708.85,708.06,1.05583573]
[1735697416545,0.25984265,708.86,708.06,1.05583573]
[1735697416748,0.25983851,708.85,708.08,1.05583573]
[1735697416942,0.25984265,708.86,708.08,1.05583573]
[1735697417243,0.25983439,708.85,708.08,1.05583573]
[1735697417646,0.25983439,708.85,708.09,1.05583573]
[1735697417846,0.25983439,708.84,708.09,1.05583573]
[1735697418042,0.25983439,708.83,708.09,1.05583573]
[1735697418249,0.25983439,708.82,708.09,1.05583573]
[1735697418547,0.25984526,708.81,708.09,1.05583573]
[1735697418751,0.28213519,708.88,707.62,0.78907219]
[1735697418752,0.28213519,708.88,708.1,1.05583573]
[1735697418949,0.25984318,708.87,708.1,1.05583573]
[1735697420144,0.25984318,708.87,707.88,1.05583573]
[1735697420145,0.25984318,708.87,708.09,1.05583573]
[1735697421252,0.25984731,708.86,708.09,1.05583573]
[1735697421452,0.25984731,708.85,708.09,1.05583573]
[1735697421651,0.25984731,708.84,708.09,1.05583573]
[1735697421852,0.25984731,708.83,708.09,1.05583573]
[1735697422051,0.25984731,708.82,708.09,1.05583573]
[1735697422251,0.25984731,708.81,708.09,1.05583573]
[1735697422449,0.25984731,708.8,708.1,1.05583573]
[1735697422647,0.25984731,708.79,708.1,1.05583573]
[1735697422846,0.25984731,708.78,708.1,1.05583573]
[1735697423050,0.25984731,708.77,708.1,1.05583573]
[1735697423254,0.25984731,708.76,708.1,1.05583573]
[1735697423455,0.25984731,708.75,708.16,1.05583573]
[1735697423655,0.25984731,708.74,708.16,1.05583573]
[1735697423851,0.28213519,708.88,708.16,1.05583573]
[1735697424147,0.25984081,708.87,708.16,1.05583573]
[1735697424353,0.25984081,708.87,708.18,1.05583573]
[1735697424549,0.25984098,708.86,708.18,1.05583573]
[1735697424749,0.25984098,708.85,708.18,1.05583573]
[1735697424950,0.25984098,708.84,708.18,1.05583573]
[1735697425153,0.25984098,708.83,708.18,1.05583573]
[1735697425458,0.25984098,708.82,708.18,1.05583573]
[1735697425656,0.25984098,708.81,708.18,1.05583573]
[1735697425859,0.25984098,708.8,708.18,1.05583573]
[1735697426053,0.25984098,708.79,708.18,1.05583573]
[1735697426358,0.25984098,708.78,708.15,1.05583573]
[1735697426656,0.25984098,708.77,708.15,1.05583573]
[1735697426855,0.25984098,708.76,708.15,1.05583573]
[1735697427055,0.25984098,708.75,708.15,1.05583573]
[1735697427256,0.25984098,708.74,708.15,1.05583573]
[1735697427458,0.25984098,708.73,708.15,1.05583573]
[1735697427657,0.25984098,708.72,708.15,1.05583573]
[1735697427953,0.28213519,708.88,708.15,1.05583573]
[1735697428152,0.25984497,708.87,708.15,1.05583573]
[1735697428357,0.25984497,708.87,708.16,1.05583573]
[1735697429558,0.25984497,708.87,708.17,1.05583573]
[1735697430951,0.25984497,708.87,708.2,1.05583573]
[1735697431758,0.28213519,708.88,708.21,1.05583573]
[1735697431958,0.25983018,708.87,708.21,1.05583573]
[1735697432556,0.25983301,708.86,708.21,1.05583573]
[1735697432761,0.2598343,708.85,708.21,1.05583573]
[1735697432961,0.28213519,708.88,708.2,1.05583573]
[1735697432962,0.2598343,708.84,708.2,1.05583573]
[1735697433262,0.2598343,708.83,708.2,1.05583573]
[1735697433461,0.2598343,708.82,708.2,1.05583573]
[1735697433661,0.2598343,708.81,708.2,1.05583573]
[1735697433960,0.28213519,708.88,708.01,1.05583573]
[1735697433961,0.2598343,708.8,708.19,1.05583573]
[1735697434163,0.2598343,708.79,708.19,1.05583573]
[1735697434359,0.28213519,708.88,708.19,1.05583573]
[1735697434560,0.2598179,708.87,708.19,1.05583573]
[1735697435455,0.2598179,708.87,708.23,1.05583573]
[1735697436864,0.2598179,708.87,708.2,1.05583573]
[1735697438958,0.2598179,708.87,708.21,1.05583573]
[1735697439763,0.2598179,708.86,708.21,1.05583573]
[1735697439962,0.2598179,708.85,708.21,1.05583573]
[1735697440159,0.2598179,708.84,708.21,1.05583573]
[1735697440463,0.2598179,708.84,707.68,2.94473682]
[1735697440464,0.25981793,708.83,708.23,1.05583573]
[1735697440660,0.25981793,708.82,708.23,1.05583573]
[1735697440866,1.47367084,709.03,708.23,1.05583573]
[1735697441064,0.25980444,709.02,708.22,1.05583573]
[1735697441759,0.25981757,709.01,708.22,1.05583573]
[1735697441959,0.25981757,709.0,708.22,1.05583573]
[1735697442164,0.25981757,708.99,708.22,1.05583573]
[1735697442360,0.25981757,709.31,708.22,1.05583573]
[1735697442560,1.47344205,709.12,708.22,1.05583573]
[1735697442859,0.54175933,709.3,708.22,1.05583573]
[1735697442860,0.2597912,709.11,708.22,1.05583573]
[1735697443066,0.2597912,709.1,708.22,1.05583573]
[1735697443259,0.2597912,709.09,708.22,1.05583573]
[1735697443461,0.2597912,709.08,708.22,1.05583573]
[1735697443664,0.2597912,709.07,708.22,1.05583573]
[1735697443865,0.2597912,709.06,708.18,1.05583573]
[1735697444066,0.2597912,709.05,708.18,1.05583573]
[1735697444367,0.2597912,709.04,708.18,1.05583573]
[1735697444569,0.2597912,709.03,708.18,1.05583573]
[1735697444770,0.2597912,709.02,708.18,1.05583573]
[1735697445067,1.47339527,709.12,708.18,1.05583573]
[1735697445266,0.25977738,709.11,708.16,1.05583573]
[1735697446572,0.25977738,709.11,708.2,1.05583573]
[1735697447073,0.28196813,709.3,708.2,1.05583573]
[1735697447371,1.47332769,709.24,708.2,1.05583573]
[1735697447773,0.25975217,709.23,708.17,1.05583573]
[1735697448266,1.47332769,709.24,708.17,1.05583573]
[1735697448467,0.25974738,709.23,708.17,1.05583573]
[1735697448669,0.25974738,709.23,708.2,1.05583573]
[1735697449875,0.25974738,709.23,708.19,1.05583573]
[1735697450270,1.47332769,709.24,708.19,1.05583573]
[1735697450468,0.25974645,709.23,708.19,1.05583573]
[1735697451270,0.25974645,709.23,708.14,1.05583573]
[1735697452273,0.25974645,709.23,708.11,1.05583573]
[1735697452872,1.47332769,709.24,708.11,1.05583573]
[1735697453073,0.25979115,709.23,708.09,1.05583573]
[1735697455278,0.25979115,709.23,707.7,0.78907219]
[1735697455279,0.25979115,709.23,708.13,1.05583573]
[1735697455472,1.47332769,709.24,708.13,1.05583573]
[1735697455675,0.25977255,709.23,708.13,1.05583573]
[1735697456273,0.25977048,709.22,708.13,1.05583573]
[1735697456578,0.25977048,709.21,708.17,1.05583573]
[1735697456779,0.25977048,709.2,708.17,1.05583573]
[1735697456982,0.25977048,709.19,708.17,1.05583573]
[1735697457282,0.25977048,709.18,708.17,1.05583573]
[1735697457473,0.25977048,709.17,708.18,1.05583573]
[1735697457676,0.25977048,709.16,708.18,1.05583573]
[1735697457877,0.25977048,709.15,708.18,1.05583573]
[1735697458175,0.2597675,709.14,708.18,1.05583573]
[1735697458975,0.2597675,709.14,708.19,1.05583573]
[1735697459980,0.2597675,709.14,708.23,1.05583573]
[1735697460381,1.47335368,709.15,708.23,1.05583573]
[1735697461780,1.47335368,709.15,707.97,1.05583573]
[1735697462681,1.47335368,709.15,707.07,2.15566463]
[1735697462682,1.47335368,709.15,707.95,1.05583573]
[1735697463478,1.47335368,709.15,707.97,1.05583573]
[1735697464583,1.47335368,709.15,707.98,1.05583573]
[1735697465882,1.47335368,709.15,708.03,1.05583573]
[1735697466078,0.28196813,709.3,708.03,1.05583573]
[1735697466276,1.47331729,709.28,708.03,1.05583573]
[1735697467283,1.47331729,709.28,708.09,1.05583573]
[1735697468683,0.28196813,709.3,708.09,1.05583573]
[1735697469383,0.28196813,709.3,708.11,1.05583573]
[1735697469784,0.25970389,709.29,708.11,1.05583573]
[1735697470083,0.28196813,709.3,708.11,1.05583573]
[1735697470479,0.28196813,709.3,707.7,0.78757082]
[1735697470480,0.28196813,709.3,708.32,1.05583573]
[1735697471679,0.28196813,709.3,708.29,1.05583573]
[1735697473278,0.28196813,709.3,708.28,1.05583573]
[1735697474384,0.28196813,709.3,708.3,1.05583573]
[1735697475386,0.28196813,709.3,708.29,1.05583573]
[1735697476182,0.25968068,709.29,708.29,1.05583573]
[1735697476578,0.25968068,709.29,708.06,1.05583573]
[1735697476579,0.25968068,709.29,708.3,1.05583573]
[1735697477586,0.25968068,709.29,708.29,1.05583573]
[1735697478182,0.28196813,709.3,708.29,1.05583573]
[1735697478380,0.25969439,709.28,708.28,1.05583573]
[1735697478582,0.25969439,709.27,708.28,1.05583573]
[1735697478779,0.25969439,709.26,708.28,1.05583573]
[1735697478985,0.28196813,709.3,708.28,1.05583573]
[1735697479180,0.25969463,709.29,708.28,1.05583573]
[1735697479887,0.25969463,709.29,708.3,1.05583573]
[1735697480787,0.25969463,709.29,708.35,1.05583573]
[1735697482388,0.25969463,709.29,708.4,1.05583573]
[1735697483289,0.25969463,709.29,708.38,1.05583573]
[1735697484191,0.25969463,709.29,708.21,1.05583573]
[1735697484895,0.25969463,709.29,708.22,1.05583573]
[1735697485791,0.25969463,709.29,708.23,1.05583573]
[1735697487096,0.25969463,709.29,708.2,1.05583573]
[1735697487791,0.25969463,709.29,708.23,1.05583573]
[1735697488794,0.28196813,709.3,708.23,1.05583573]
[1735697488995,0.25971332,709.29,708.22,1.05583573]
[1735697490095,0.25971332,709.29,707.7,0.78757082]
[1735697490096,0.25971332,709.29,708.25,1.05583573]
[1735697490893,0.25971332,709.29,708.28,1.05583573]
[1735697491393,0.25969353,709.28,708.28,1.05583573]
[1735697491591,0.25969353,709.27,708.28,1.05583573]
[1735697491792,0.28196813,709.3,708.3,1.05583573]
[1735697492090,0.25969425,709.29,708.3,1.05583573]
[1735697492797,0.25969425,709.29,708.32,1.05583573]
[1735697493891,0.28196813,709.3,708.32,1.05583573]
[1735697494092,0.25969348,709.29,708.31,1.05583573]
[1735697494796,0.25969179,709.28,708.31,1.05583573]
[1735697494998,0.25969179,709.27,708.31,1.05583573]
[1735697495192,0.25969179,709.26,708.41,1.05583573]
[1735697495395,0.25969179,709.25,708.41,1.05583573]
[1735697495696,0.25969179,709.24,708.41,1.05583573]
[1735697495996,0.25969179,709.23,708.41,1.05583573]
[1735697496191,0.25969179,709.22,708.41,1.05583573]
[1735697496397,0.25969179,709.21,708.41,1.05583573]
[1735697496698,0.28196813,709.3,708.41,1.05583573]
[1735697496896,0.25967855,709.29,708.41,1.05583573]
[1735697497292,0.28196813,709.3,708.41,1.05583573]
[1735697497696,0.28196813,709.3,708.46,1.05583573]
[1735697498895,0.28196813,709.3,707.89,2.15566463]
[1735697498896,0.28196813,709.3,708.44,1.05583573]
[1735697500198,0.28196813,709.3,708.49,1.05583573]
[1735697501691,0.28196813,709.3,708.51,1.05583573]
[1735697503598,0.28196813,709.3,707.84,2.15566463]
[1735697503599,0.28196813,709.3,708.52,1.05583573]
[1735697504598,0.28196813,709.3,708.53,1.05583573]
[1735697506600,0.28196813,709.3,708.2,1.05583573]
[1735697506601,0.28196813,709.3,708.54,1.05583573]
[1735697507195,0.28196813,709.3,708.31,1.05583573]
[1735697507196,0.25966405,709.29,708.53,1.05583573]
[1735697507395,0.25966405,709.28,708.53,1.05583573]
[1735697507598,0.25966405,709.27,708.53,1.05583573]
[1735697507900,0.25966405,709.26,708.53,1.05583573]
[1735697508101,0.25966405,709.25,708.53,1.05583573]
[1735697508399,0.25966405,709.24,708.58,1.05583573]
[1735697508601,0.25966405,709.23,708.58,1.05583573]
[1735697508801,0.25966405,709.22,708.58,1.05583573]
[1735697508995,0.28196813,709.3,708.58,1.05583573]
[1735697509199,0.25967452,709.29,708.58,1.05583573]
[1735697509601,0.25967452,709.29,708.55,1.05583573]
[1735697509998,0.25967268,709.28,708.55,1.05583573]
[1735697510198,0.25967268,709.27,708.55,1.05583573]
[1735697510402,0.25967268,709.26,708.56,1.05583573]
[1735697510603,0.28196813,709.3,708.56,1.05583573]
[1735697510801,0.2596645,709.29,708.56,1.05583573]
[1735697511404,0.2596645,709.29,708.58,1.05583573]
[1735697513103,0.28196813,709.3,708.58,1.05583573]
[1735697513505,0.28196813,709.3,708.57,1.05583573]
[1735697514506,0.28196813,709.3,708.41,1.05583573]
[1735697517002,0.28196813,709.3,708.42,1.05583573]
[1735697518907,0.28196813,709.3,708.39,1.05583573]
[1735697519904,0.28196813,709.3,708.4,1.05583573]
[1735697522309,0.28196813,709.3,708.44,1.05583573]
[1735697523212,0.28196813,709.3,708.45,1.05583573]
[1735697524108,0.28196813,709.3,708.49,1.05583573]
[1735697525213,0.28196813,709.3,707.81,2.15566463]
[1735697525214,0.28196813,709.3,708.51,1.05583573]
[1735697526608,0.28196813,709.3,708.52,1.05583573]
[1735697527512,0.28196813,709.3,708.54,1.05583573]
[1735697528113,0.25967491,709.29,708.54,1.05583573]
[1735697528712,0.25967491,709.29,708.55,1.05583573]
[1735697529915,0.25967491,709.29,708.61,1.05583573]
[1735697530515,0.25966964,709.28,708.6,1.05583573]
[1735697530715,0.25966964,709.27,708.6,1.05583573]
[1735697531016,0.25966964,709.26,708.6,1.05583573]
[1735697531215,0.25966964,709.25,708.6,1.05583573]
[1735697531415,0.28196813,709.3,708.6,1.05583573]
[1735697531816,0.28196813,709.3,708.58,1.05583573]
[1735697532514,0.28196813,709.3,708.01,2.15566463]
[1735697532515,0.28196813,709.3,708.46,1.05583573]
[1735697534115,0.28196813,709.3,708.4,1.05583573]
[1735697536219,0.28196813,709.3,708.38,1.05583573]
[1735697536920,0.28196813,709.3,708.35,1.05583573]
[1735697537919,0.28196813,709.3,708.36,1.05583573]
[1735697539320,0.28196813,709.3,708.37,1.05583573]
[1735697542025,0.28196813,709.3,708.42,1.05583573]
[1735697543426,0.28196813,709.3,708.46,1.05583573]
[1735697544227,0.28196813,709.3,708.52,1.05583573]
[1735697545822,0.28196813,709.3,708.49,1.05583573]
[1735697546428,0.25967263,709.29,708.49,1.05583573]
[1735697547233,0.25967263,709.29,708.59,1.05583573]
[1735697548923,0.2596768,709.28,708.59,1.05583573]
[1735697549127,0.2596768,709.29,708.57,1.05583573]
[1735697549325,0.2596768,709.28,708.57,1.05583573]
[1735697549526,0.2596768,709.27,708.57,1.05583573]
[1735697549823,0.2596839,709.26,708.57,1.05583573]
[1735697550021,0.28196813,709.3,708.57,1.05583573]
[1735697550022,0.2596839,709.25,708.57,1.05583573]
[1735697550221,0.2596839,709.24,708.57,1.05583573]
[1735697550420,0.28196813,709.3,708.57,1.05583573]
[1735697550628,0.2596801,709.29,708.57,1.05583573]
[1735697551726,0.25968027,709.28,708.57,1.05583573]
[1735697552029,0.25968027,709.27,708.57,1.05583573]
[1735697552329,0.25968027,709.26,708.57,1.05583573]
[1735697552524,0.25968027,709.25,708.57,1.05583573]
[1735697552725,0.25968027,709.24,708.57,1.05583573]
[1735697552923,0.28196813,709.3,708.57,1.05583573]
[1735697553127,0.25967839,709.29,708.58,1.05583573]
[1735697554430,0.2596756,709.28,708.58,1.05583573]
[1735697554631,0.2596756,709.27,708.58,1.05583573]
[1735697554929,0.2596756,709.26,708.58,1.05583573]
[1735697555130,0.2596756,709.25,708.57,1.05583573]
[1735697555331,0.2596756,709.24,708.57,1.05583573]
[1735697555529,0.2596756,709.23,708.57,1.05583573]
[1735697555723,0.2596756,709.22,708.57,1.05583573]
[1735697555927,0.2596756,709.21,708.57,1.05583573]
[1735697556126,0.2596756,709.2,708.57,1.05583573]
[1735697556325,0.2596756,709.19,708.56,1.05583573]
[1735697556528,0.2596756,709.18,708.56,1.05583573]
[1735697556729,0.25969258,709.17,708.56,1.05583573]
[1735697556927,0.28196813,709.3,708.56,1.05583573]
[1735697557130,0.25969276,709.29,708.56,1.05583573]
[1735697557530,0.28196813,709.3,708.57,1.05583573]
[1735697557730,0.25973124,709.29,708.57,1.05583573]
[1735697558435,0.25973124,709.29,708.42,1.05583573]
[1735697559739,0.25972856,709.28,708.4,1.05583573]
[1735697560034,0.25972856,709.27,708.4,1.05583573]
[1735697560236,0.25972856,709.26,708.4,1.05583573]
[1735697560438,0.25972856,709.25,708.4,1.05583573]
[1735697560637,0.25972856,709.24,708.39,1.05583573]
[1735697560839,0.25972856,709.23,708.39,1.05583573]
[1735697561035,0.25972856,709.22,708.39,1.05583573]
[1735697561235,0.28196813,709.3,708.39,1.05583573]
[1735697561436,0.25975463,709.29,708.39,1.05583573]
[1735697561639,0.25975463,709.29,708.37,1.05583573]
[1735697562236,0.25976084,709.28,708.37,1.05583573]
[1735697562438,0.25976084,709.27,708.15,1.05583573]
[1735697562639,0.25976084,709.26,708.15,1.05583573]
[1735697562838,0.25976084,709.25,708.15,1.05583573]
[1735697563039,0.25976084,709.24,708.15,1.05583573]
[1735697563334,0.25976084,709.23,708.15,1.05583573]
[1735697563535,0.28196813,709.3,708.15,1.05583573]
[1735697563741,0.28196813,709.3,708.13,0.28243401]
[1735697563742,0.25976062,709.29,708.13,0.28243401]
[1735697564839,0.25976541,709.28,708.13,0.28243401]
[1735697565039,0.25976541,709.27,708.13,0.28243401]
[1735697565235,0.25976541,709.26,708.13,0.28243401]
[1735697565440,0.25976541,709.25,708.13,0.28243401]
[1735697565642,0.25976766,709.24,708.13,0.28243401]
[1735697565843,0.25976766,709.23,708.13,0.28243401]
[1735697566041,0.25976766,709.22,708.13,0.28243401]
[1735697566239,0.25976766,709.21,708.13,0.28243401]
[1735697566438,0.28196813,709.3,708.13,0.28243401]
[1735697566643,0.25976806,709.29,708.13,0.28243401]
[1735697572840,0.28196813,709.3,708.13,0.28243401]
[1735697573047,0.25976002,709.29,708.13,0.28243401]
[1735697573746,0.25976403,709.28,708.13,0.28243401]
[1735697574045,0.25976403,709.27,708.13,0.28243401]
[1735697574242,0.25976403,709.26,708.13,0.28243401]
[1735697574440,0.25976403,709.25,708.13,0.28243401]
[1735697574643,0.25976403,709.24,708.13,0.28243401]
[1735697574845,0.25976403,709.23,708.13,0.28243401]
[1735697575047,0.25976403,709.22,708.13,0.28243401]
[1735697575846,0.25976598,709.21,708.13,0.28243401]
[1735697576040,0.25976598,709.2,708.13,0.28243401]
[1735697576246,0.25976598,709.19,708.13,0.28243401]
[1735697576441,0.25976598,709.18,708.13,0.28243401]
[1735697576646,0.25976598,709.17,708.13,0.28243401]
[1735697576841,0.25976598,709.16,708.13,0.28243401]
[1735697577040,0.25976598,709.15,708.13,0.28243401]
[1735697577243,0.25976598,709.14,708.13,0.28243401]
[1735697577442,0.25976598,709.13,708.13,0.28243401]
[1735697577640,0.25976598,709.12,708.13,0.28243401]
[1735697577945,0.25976598,709.11,708.13,0.28243401]
[1735697578148,0.25976598,709.1,708.13,0.28243401]
[1735697578442,0.25977219,709.09,708.13,0.28243401]
[1735697578647,0.25977219,709.08,708.13,0.28243401]
[1735697578846,0.25977219,709.07,708.13,0.28243401]
[1735697579049,0.25977219,709.06,708.13,0.28243401]
[1735697579248,0.25977219,709.05,708.13,0.28243401]
[1735697579442,0.25977219,709.04,708.13,0.28243401]
[1735697579640,0.25977219,709.03,708.13,0.28243401]
[1735697579840,0.25977219,709.02,708.13,0.28243401]
[1735697580046,0.25977219,709.01,708.13,0.28243401]
[1735697580242,0.25977219,709.0,708.13,0.28243401]
[1735697580443,0.25977219,708.99,708.13,0.28243401]
[1735697580649,0.25977219,709.22,708.13,0.28243401]
[1735697580950,0.2597712,709.21,708.13,0.28243401]
[1735697581140,0.2597712,709.2,708.13,0.28243401]
[1735697581344,0.2597712,709.19,708.13,0.28243401]
[1735697581544,0.25977188,709.18,708.13,1.33826974]
[1735697581746,0.25977188,709.17,708.13,1.33826974]
[1735697581940,0.25977188,709.16,708.13,1.33826974]
[1735697582140,0.25977188,709.15,708.13,1.33826974]
[1735697582349,0.25977188,709.14,708.13,1.33826974]
[1735697582541,1.47332769,709.23,708.14,1.05583573]
[1735697582542,0.25977188,709.13,708.14,1.05583573]
[1735697582743,0.25977188,709.12,708.14,1.05583573]
[1735697582946,0.25976365,709.11,708.14,1.05583573]
[1735697583143,0.25976365,709.1,708.14,1.05583573]
[1735697583348,0.25976365,709.09,708.14,1.05583573]
[1735697583644,0.25976365,709.08,708.13,1.33826974]
[1735697583845,0.25976365,709.07,708.13,1.33826974]
[1735697584050,0.25976365,709.06,708.13,1.33826974]
[1735697584350,0.25976365,709.05,708.16,1.05583573]
[1735697584547,0.25976365,709.04,708.16,1.05583573]
[1735697584744,0.25976365,709.03,708.16,1.05583573]
[1735697585044,1.47332769,709.23,708.16,1.05583573]
[1735697585045,0.25976365,709.02,708.16,1.05583573]
[1735697585252,0.25976365,709.01,708.16,1.05583573]
[1735697585550,0.25976331,709.0,708.17,1.05583573]
[1735697585747,0.25976331,708.99,708.17,1.05583573]
[1735697585948,0.25976331,708.98,708.17,1.05583573]
[1735697586144,1.47332769,709.16,708.17,1.05583573]
[1735697586347,0.25976144,709.15,708.17,1.05583573]
[1735697586750,0.25976144,709.15,708.21,1.05583573]
[1735697587746,0.25976144,709.15,708.18,1.05583573]
[1735697588245,0.25976142,709.14,708.18,1.05583573]
[1735697588446,0.25976142,709.13,708.18,1.05583573]
[1735697588650,0.25976142,709.12,708.2,1.05583573]
[1735697588846,0.25976142,709.11,708.2,1.05583573]
[1735697589050,0.25975791,709.1,708.2,1.05583573]
[1735697589355,0.25975791,709.09,708.2,1.05583573]
[1735697589555,0.25975791,709.08,708.23,1.05583573]
[1735697589853,0.25975791,709.07,708.23,1.05583573]
[1735697590050,0.25975791,709.06,708.23,1.05583573]
[1735697590252,0.25975791,709.05,708.23,1.05583573]
[1735697590452,1.47332769,709.16,708.13,0.28243401]
[1735697590453,0.25975791,709.04,708.25,1.05583573]
[1735697590659,0.25975791,709.03,708.25,1.05583573]
[1735697590849,0.25975791,709.02,708.25,1.05583573]
[1735697591052,0.25975791,709.01,708.25,1.05583573]
[1735697591249,1.47332769,709.16,708.25,1.05583573]
[1735697591456,0.25977404,709.15,708.25,1.05583573]
[1735697592657,0.25977404,709.15,708.26,1.05583573]
[1735697593756,0.25977095,709.14,708.3,1.05583573]
[1735697593957,0.25977095,709.13,708.3,1.05583573]
[1735697594253,0.25977095,709.12,708.3,1.05583573]
[1735697594458,0.25977095,709.12,708.13,0.28243401]
[1735697594459,0.25977095,709.11,708.33,1.05583573]
[1735697594651,0.25977095,709.1,708.33,1.05583573]
[1735697594855,0.25977095,709.09,708.33,1.05583573]
[1735697595057,0.25977095,709.08,708.33,1.05583573]
[1735697595256,0.25977095,709.07,708.33,1.05583573]
[1735697595553,0.25977095,709.06,708.33,1.05583573]
[1735697595752,0.25977095,709.05,708.33,1.05583573]
[1735697595952,0.25977095,709.04,708.33,1.05583573]
[1735697596159,0.25977095,709.03,708.33,1.05583573]
[1735697596359,0.25977086,709.02,708.36,1.05583573]
[1735697596559,0.25977086,709.01,708.36,1.05583573]
[1735697596755,0.25977086,709.0,708.36,1.05583573]
[1735697596960,1.47332769,709.16,708.36,1.05583573]
[1735697597155,0.25977039,709.15,708.4,1.05583573]
[1735697599059,0.25977108,709.14,708.4,1.05583573]
[1735697599262,0.25977108,709.13,708.41,1.05583573]
[1735697599469,0.25977108,709.12,708.41,1.05583573]
[1735697599765,0.25977108,709.11,708.41,1.05583573]
[1735697599965,1.47332769,709.16,708.41,1.05583573]
[1735697600167,0.25978693,709.15,708.41,1.05583573]
[1735697600367,0.25978693,709.15,708.22,1.05583573]
[1735697600368,0.25978693,709.15,708.21,1.05583573]
[1735697600961,1.47332769,709.16,708.21,1.05583573]
[1735697602563,1.47332769,709.16,707.23,2.15566463]
[1735697602564,1.47332769,709.16,707.9,1.05583573]
[1735697603369,1.47332769,709.16,706.87,2.15566463]
[1735697603370,1.47332769,709.16,707.85,1.05583573]
[1735697605471,1.47332769,709.16,707.86,1.05583573]
[1735697606172,1.47332769,709.16,707.85,1.05583573]
[1735697607270,1.47332769,709.16,707.93,1.05583573]
[1735697608977,1.47332769,709.16,707.96,1.05583573]
[1735697610879,0.25978212,709.15,707.96,1.05583573]